Cogmind - Beta 14 @@@ ROGUE MODE // 2025.03.13 @ 15:04:29 Player: canerib Result: Destroyed by EX-DEC with AWS/EX-DEC Performance ------------- Evolutions (0) 0 Regions Visited (3) 600 Robots Destroyed (9) 45 Value Destroyed (195) 195 Prototype IDs (23) 460 Alien Tech Used (0) 0 Bonus (300) 300 TOTAL SCORE: 1600 Bonus ------- Aligned with FarCom 300 Cogmind --------- Core Integrity 0/250 Matter 300/300 Energy 98/100 System Corruption 2% Temperature Cool (0) Movement Core (50) Location -10/Exiles Parts ------- > --- POWER (1) -------- (None) > --- PROPULSION (2) --- (None) > --- UTILITY (2) ------ (None) > --- WEAPON (2) ------- (None) > --- INVENTORY (5) ---- Ion Engine Aluminum Leg Utility Shielding Assault Rifle Mining Laser Peak State ------------ > --- POWER ------------ Ion Engine > --- PROPULSION ------- Aluminum Leg Aluminum Leg > --- UTILITY ---------- Small Storage Unit Seismic Detector > --- WEAPON ----------- Medium Laser Medium Laser > --- INVENTORY -------- Ion Engine Assault Rifle [Rating: 7] Favorites ----------- Power Ion Engine Engine Ion Engine Propulsion Aluminum Leg Leg Aluminum Leg Utility Seismic Detector Device Seismic Detector Storage Large Storage Unit Weapon Medium Laser Energy Gun Medium Laser Build | -11 -10 -10 -10 ------- Run | Yrd Mat Min Exi Slots Evolved . | . . . . Power . | . . . . Propulsion . | . . . . Utility . | . . . . Weapon . | . . . . Parts Attached 10 | 7 3 . . Power 1 | 1 . . . Engine 1 | 1 . . . Core . | . . . . Reactor . | . . . . Propulsion 4 | 2 2 . . Treads . | . . . . Leg 4 | 2 2 . . Wheel . | . . . . Hover . | . . . . Flight . | . . . . Utility 3 | 2 1 . . Device 1 | 1 . . . Storage 2 | 1 1 . . Processor . | . . . . Hackware . | . . . . Protection . | . . . . Artifact . | . . . . Weapon 2 | 2 . . . Energy Gun 2 | 2 . . . Energy Cannon . | . . . . Ballistic Gun . | . . . . Ballistic Cannon . | . . . . Launcher . | . . . . Special Weapon . | . . . . Impact Weapon . | . . . . Slashing Weapon . | . . . . Piercing Weapon . | . . . . Special Melee Weapon . | . . . . Unidentified Prototypes . | . . . . Parts Lost 3 | . . . 3 Power . | . . . . Propulsion 2 | . . . 2 Utility 1 | . . . 1 Weapon . | . . . . Highest Loss Streak 3 | . . . 3 To Critical Strikes . | . . . . Average Slot Usage (%) 99 | . 100 100 98 Engine 14 | . 14 14 14 Leg 27 | . 28 28 27 Device 13 | . 14 14 13 Storage 14 | . 14 14 14 Energy Gun 28 | . 28 28 28 Peak Build Rating 7 | 7 7 7 7 Average Rating 6 | 5 7 7 6 On Entrance 5 | . 7 7 7 Naked Turns 3 | . . . 3 Heaviest Build 30 | 15 30 30 30 Greatest Support 20 | 20 20 20 20 Greatest Overweight (x) 2 | . 1 1 2 Average Overweight (x) . | . . 1 . Largest Inventory Capacity 15 | 8 15 15 15 Average Capacity 12 | 7 11 15 14 Most Carried 9 | 3 9 9 9 Average Carried 7 | 1 5 9 8 Final Capacity 15 | 8 15 15 5 Final Carried 9 | 3 9 9 5 Class Distribution -------------------- 100% | Mutant Dominant Class ---------------- Mutant | -10/Materials Mutant | -10/Mines Mutant | -10/Exiles Resources | -11 -10 -10 -10 ----------- Run | Yrd Mat Min Exi Matter Collected 304 | 270 30 . 4 Remotely . | . . . . Salvage Created 397 | 88 309 . . Parts 15 | 3 12 . . Haulers Intercepted 2 | . 2 . . Recyclers Shooed . | . . . . Parts Field Recycled . | . . . . Retrieved Matter . | . . . . Parts Self-Destructed . | . . . . Prevented . | . . . . Kills | -11 -10 -10 -10 ------- Run | Yrd Mat Min Exi Combat Hostiles Destroyed 4 | . 4 . . Guns 4 | . 4 . . Classes Destroyed 5 | 2 3 . . Tunneler 1 | 1 . . . Hauler 2 | . 2 . . Recycler 1 | 1 . . . Watcher 1 | . 1 . . Grunt 4 | . 4 . . Best Kill Streak 2 | 2 2 . . Combat Bots Only 2 | . 2 . . Max Kills in Single Turn 1 | 1 1 . . Gunslinging . | . . . . Exploded . | . . . . Melee . | . . . . Uniques/NPCs Destroyed . | . . . . Combat | -11 -10 -10 -10 -------- Run | Yrd Mat Min Exi Hostile Shots Fired 50 | . 28 . 22 Missed 11 | . 7 . 4 Damage Taken 794 | . 328 . 466 Core 250 | . 32 . 218 Absorbed by Shields . | . . . . Core Remaining (%) 100 | 100 . . . Volleys Fired 30 | 4 26 . . Largest 2 | 2 2 . . Hottest 100 | 100 100 . . Shots Fired 61 | 8 52 . 1 Gun 61 | 8 52 . 1 Cannon . | . . . . Launcher . | . . . . Special . | . . . . Kinetic . | . . . . Thermal 61 | 8 52 . 1 Explosive . | . . . . Electromagnetic . | . . . . Robot Hit Streak 10 | 2 10 . . Robot Miss Streak 3 | 2 2 . 3 Penetration Max . | . . . . Secondary Targets . | . . . . Shots Hit Robots 41 | 4 37 . . Core Hits 18 | 3 15 . . Critical Kills . | . . . . Critical Parts Destroyed . | . . . . Critical Strikes 2 | 1 1 . . Burn 2 | 1 1 . . Melee Attacks . | . . . . Impact . | . . . . Slashing . | . . . . Piercing . | . . . . Sneak Attacks . | . . . . Combat Hostiles . | . . . . Follow-up Attacks . | . . . . Damage Inflicted 516 | 49 467 . . Guns 516 | 49 467 . . Cannons . | . . . . Explosions . | . . . . Melee . | . . . . Ramming . | . . . . Kinetic . | . . . . Thermal 516 | 49 467 . . Explosive . | . . . . Electromagnetic . | . . . . Impact . | . . . . Slashing . | . . . . Piercing . | . . . . Highest Corruption 2 | . 1 1 2 Average Corruption 1 | . 1 1 1 Corruption Purged . | . . . . Corruption Blocked . | . . . . Effects 3 | . . . 3 Matter Fused 2 | . . . 2 Misfires 1 | . . . 1 Overload Shots . | . . . . Overflow Damage . | . . . . Projectiles . | . . . . Explosions . | . . . . Melee . | . . . . Knockbacks . | . . . . Impact . | . . . . Kinetic . | . . . . Secondary . | . . . . Self-Inflicted Damage . | . . . . Shots . | . . . . Rammed . | . . . . Targets Rammed . | . . . . Kicked . | . . . . Crushed . | . . . . Highest Temperature 366 | 78 366 . 12 Average Temperature 130 | 40 144 . 9 Received Heat Transfer 150 | . 150 . . Effects 2 | . 2 . . Energy Bleed 1 | . 1 . . Interference 1 | . 1 . . Siege Activations . | . . . . Robots Corrupted . | . . . . Combat Hostiles . | . . . . Parts Fried . | . . . . Impact Corruptions . | . . . . Robots Melted . | . . . . Combat Hostiles . | . . . . Parts Melted 7 | . 7 . . Heat Transferred 1665 | 222 1443 . . Parts Sabotaged . | . . . . Parts Stolen . | . . . . Parts Stripped . | . . . . Power Chain Reactions . | . . . . Alert | -11 -10 -10 -10 ------- Run | Yrd Mat Min Exi Peak Influence 196 | 10 196 76 . Initial 76 | . 6 76 . Average 86 | 3 104 76 . Maximum Alert Level . | . . . . Low Security (%) 100 | 100 100 100 . Level 1 . | . . . . Level 2 . | . . . . Level 3 . | . . . . Level 4 . | . . . . Level 5 . | . . . . High Security . | . . . . Max Security . | . . . . Squads Dispatched 2 | . 2 . . Investigation . | . . . . Extermination . | . . . . Reinforcement 2 | . 2 . . Assault . | . . . . Garrison . | . . . . Intercept . | . . . . Searches Triggered . | . . . . Construction Impeded . | . . . . Haulers Reinforced . | . . . . Active Scanning Responses . | . . . . Cargo Convoy Interrupts . | . . . . Stealth | -11 -10 -10 -10 --------- Run | Yrd Mat Min Exi Distress Signals . | . . . . Communications Jammed . | . . . . Distress Signals . | . . . . Times Spotted 19 | . 11 . 8 Peak Tracking Total 12 | . 2 . 12 Tactical Retreats 1 | . 1 . . Traps | -11 -10 -10 -10 ------- Run | Yrd Mat Min Exi Traps Triggered 2 | . 2 . . Indirectly . | . . . . Trap Hack Attempts . | . . . . Triggered . | . . . . Disarmed . | . . . . Reprogrammed . | . . . . Reused . | . . . . Traps Extracted . | . . . . Installed . | . . . . Triggered . | . . . . Machines | -11 -10 -10 -10 ---------- Run | Yrd Mat Min Exi Machines Disabled . | . . . . Max in Single Turn . | . . . . Machines Repaired . | . . . . Machines Dismantled . | . . . . Machines Sabotaged . | . . . . Overloaded Fab Kills . | . . . . Hacking | -11 -10 -10 -10 --------- Run | Yrd Mat Min Exi Machines Accessed 4 | . 3 . 1 Terminals 3 | . 3 . . Fabricators . | . . . . Repair Stations . | . . . . Recycling Units . | . . . . Scanalyzers . | . . . . Garrison Access . | . . . . Total Hacks 7 | . 6 . 1 Successful 6 | . 5 . 1 Failed 1 | . 1 . . Catastrophic . | . . . . Database Lockouts . | . . . . Manual 7 | . 6 . 1 Terminals 6 | . 6 . . Fabricators . | . . . . Repair Stations . | . . . . Recycling Units . | . . . . Scanalyzers . | . . . . Garrison Access . | . . . . Terminal Hacks 3 | . 2 . 1 Terminal Index 1 | . 1 . . Zone Layout 1 | . 1 . . Derelict Proto ID Bank 1 | . . . 1 Fabricator Hacks . | . . . . Repair Station Hacks . | . . . . Recycling Unit Hacks . | . . . . Scanalyzer . | . . . . Garrison Access Hacks . | . . . . Unauthorized Hacks 3 | . 3 . . Terminals 3 | . 3 . . Botnet 3 | . 3 . . Fabricators . | . . . . Repair Stations . | . . . . Recycling Units . | . . . . Scanalyzers . | . . . . Garrison Access . | . . . . Data Cores Recovered . | . . . . Used . | . . . . Hacking Detections 3 | . 3 . . Full Trace Events . | . . . . Feedback Events . | . . . . Feedback Blocked . | . . . . Robot Schematics Acquired . | . . . . Robots Built . | . . . . Authchips . | . . . . Time . | . . . . Total Robot Build Rating . | . . . . Part Schematics Acquired . | . . . . Parts Built . | . . . . Authchips . | . . . . Time . | . . . . Total Part Build Rating . | . . . . Parts Repaired . | . . . . Time . | . . . . Parts Recycled . | . . . . Recycled Matter . | . . . . Retrieved Matter . | . . . . Retrieved Components . | . . . . Parts Scanalyzed . | . . . . Part Schematics Acquired . | . . . . Parts Damaged . | . . . . Bothacking | -11 -10 -10 -10 ------------ Run | Yrd Mat Min Exi Used RIF Installer . | . . . . Robots Hacked . | . . . . Non-combat . | . . . . Combat . | . . . . Robot Hacks Applied . | . . . . Relay Couplers Released . | . . . . Fabnet Peak Effective % . | . . . . Robots Rewired . | . . . . Allies Hacked . | . . . . Hacks Repelled . | . . . . Allies | -11 -10 -10 -10 -------- Run | Yrd Mat Min Exi Total Allies . | . . . . Largest Group . | . . . . Highest-Rated Group . | . . . . Highest-Rated Ally . | . . . . Total Orders . | . . . . Ally Attacks . | . . . . Total Damage . | . . . . Kills . | . . . . Allies Corrupted . | . . . . Allies Melted . | . . . . Intel | -11 -10 -10 -10 ------- Run | Yrd Mat Min Exi Robot Analysis Total . | . . . . Derelict Logs Recovered . | . . . . Drone Launches . | . . . . Drone Recoveries . | . . . . Exploration | -11 -10 -10 -10 ------------- Run | Yrd Mat Min Exi Turns Passed 912 | 76 384 48 404 Spaces Moved 478 | 47 187 26 218 Core 15 | 7 . . 8 Treads . | . . . . Legs 463 | 40 187 26 210 Wheels . | . . . . Hover . | . . . . Flight . | . . . . Fastest Speed 50 | 50 120 190 50 Average Speed 162 | 109 145 190 185 Slowest Speed 260 | 120 190 190 260 Overloaded Moves . | . . . . Propulsion Burnouts . | . . . . Robots Hopped . | . . . . Cave-ins Triggered . | . . . . Exploration Rate (%) 28 | 4 38 10 62 Regions Visited 3 Branch Regions 2 Pre-discovered Areas . | . . . . Known Exits Taken . | . . . . Unknown Exits Taken 3 | 1 1 1 . Scrap Searched . | . . . . Spaces Dug . | . . . . Terrain Destroyed . | . . . . Melee . | . . . . Projectile . | . . . . AOE . | . . . . Terrain Rammed . | . . . . Walls Destroyed . | . . . . Machines Disabled . | . . . . Actions | -11 -10 -10 -10 --------- Run | Yrd Mat Min Exi Total 550 | 60 247 25 218 Wait 27 | . 27 . . Move 475 | 46 186 25 218 Hop . | . . . . Pick Up 7 | 3 4 . . Fast Attach 7 | 7 . . . Attach . | . . . . Detach . | . . . . Swap 3 | . 3 . . Drop 1 | . 1 . . Fire 30 | 4 26 . . Melee . | . . . . Ram . | . . . . Kick . | . . . . Crush . | . . . . Escape Stasis . | . . . . Rewire . | . . . . Trap . | . . . . Miscellaneous . | . . . . Route ------- -11/Scrapyard -10/Materials -10/Mines -10/Exiles History --------- Turn | Location | Event 5 | -11/Scrapyard | Discovered new exit (range 14) 77 | -11/Scrapyard | Entered Materials 258 | -10/Materials | Discovered new exit (range 16) 308 | -10/Materials | Build established: Mutant 461 | -10/Materials | Entered Mines 499 | -10/Mines | Deemed a non-threat by the Exiles lab entrance 501 | -10/Mines | Discovered new exit (range 5) 509 | -10/Mines | Entered Exiles 572 | -10/Exiles | Met 8R-AWN 597 | -10/Exiles | Met EX-HEX 650 | -10/Exiles | Met EX-BIN 677 | -10/Exiles | Aligned with FarCom system 679 | -10/Exiles | Given EX-Vault access code 722 | -10/Exiles | Opened EX-Vault 768 | -10/Exiles | Warned to stay clear of 0b10 Research branches 819 | -10/Exiles | Met EX-DEC 881 | -10/Exiles | Visited The Gauntlet 901 | -10/Exiles | Attacked by the Exiles 910 | -10/Exiles | Released all parts (4) 913 | -10/Exiles | Core integrity fell below 50% 913 | -10/Exiles | Destroyed by EX-DEC with AWS/EX-DEC Last Messages --------------- 1234 which I did last time as a little joke and some thief managed to sneak in here and steal a few of HEX's prototypes. EX-DEC: Ah I see we have a visitor. One wrong move in here and I'll invert your atomic chain! 00821_ EX-DEC: "Oops, I hope HEX didn't hear that..." 00866_ System corrupted: Matter fused (-7). 00901_ System corrupted: FCS attempts to trigger Med. Laser. 00901_ System corrupted: Med. Laser misfires. 00901_ EXILES: Hostile robot within lab perimeter. Defensive protocols time, folks! 00905_ Aluminum Leg destroyed. 00908_ Knocked back. 00909_ Acquired 4 matter. 00909_ Seismic Detector destroyed. 00910_ Released Lrg. Storage Unit. 00910_ Released Med. Laser. 00910_ Released Ion Engine. 00910_ Released Med. Laser. 00911_ Machine disabled. 00913_ Knocked back. Map ----- +----------------------------------------------------+ | ??????????????????????# ?????????##"" #??????? | | ????????????????????### ##??######"" #??????? | | ????????????????#####X# #"###""""""" ##?????? | | ??????????????? """""" " "" ##???## | | ?????????????? "" """ " #####" | | ?????????????? " " " | | ????????????? | | ????????????? | | ????????????? | | ?????????????# | | ??????????????#" | | ??????????????#""" """""" | | ??????????????#" ######""" | | ?????????????#"" ""##????#####""" | | ?????????????#""" """##?????????##""" | | ????????????#""" """##???????????#"""" | | ????????????#""" z ""#????????????#"" | | ????????????#"" ###?####??????"""" | | ????????????#""" t ##aaa##????" | | ????????????#"" ""?? | | ????????????##"" ?? | | ?????????????#"""" a a? | | ??????????????# ?? | | ??????????????#" " ?? "" | | ??????????????#"""" a ""##?????"" " " | | ??????????????#"" @ a ""###???????##""" | | ??????????????# a""""##????????????#"" | | ??????????????#""" ""#?????????????##? | | ??????????????## a ""##???????????????? | | ???????????????#"" ""##????????????????? | | ???????????????##""" ##?????????????????? | | ????????????????##"""" ##??????????????????? | | ?????????????????### #???????????????????? | | ???????????????????##### c][##???????????????????? | | ???????????????????????##!!%#????????????????????? | | ????????????????????????#*!=#????????????????????? | | ????????????????????????#% #????????????????????? | | ????????????????????????# #????????????????????? | | ????????????????????????# #????????????????????? | | ????????????????????????# #????????????????????? | | ????????????????????????# #????????????????????? | | ????????????????????????# #????????????????????? | | ????????????????????????# #????????????????????? | | ????????????????????????# #????????????????????? | | ????????????????????##### #####????????????????? | | ????????????????????""""" """""????????????????? | | ??????????????? "#?????????????? | | ?????????????? " ????????????? | | ????????????? " "??????????? | | ???????????? " "??????????? | +----------------------------------------------------+ Best States ------------- Heat Dissipation 25 Energy Generation 10 Energy Capacity 250 Matter Stores 300 Matter Capacity 300 Sight Range 16 Terrain Scan Density 10 Evasion (%) 55 Item Schematics ----------------- None Robot Schematics ------------------ None Fabricated ------------ Nothing Alien Tech Used ----------------- None Achievements -------------- None Challenges ------------ None Game ------ Seed WeightCargoFragment Manual? 0 Play Time 00:09:38 Cumulative 65.7 hours Start 2025.03.13 @ 14:51:40 End 2025.03.13 @ 15:04:29 Sessions 1 Manual Loads 0 Difficulty Rogue Special Mode None Game No. 96 Rogue 96 Adventurer 0 Explorer 0 Win Type - Total 1 Types 1/0/0/0/0/0/0/0/0 Lore% 29 Gallery% 42 Achievement% 37 Wizard Run 0 Options --------- Layout 1 ASCII 1 Keyboard 0 Movement Numpad Keybinds 0 Fullscreen 1 Font 48/Smallcaps Map View 76x35 Zoom Use 0% Tactical HUD 1 Map Filters NONE Filters NONE Steam 1 RUN: 64a17d1e-7b27-4e31-8862-2b1250596ce5